bitfinex-derivatives/quotes_BTCF0:USTF0_20241010
["timestamp","ask_amount","ask_price","bid_price","bid_amount"]
[1728583439256,0.0004,59480.0,59479.0,1.1046494]
[1728583439557,0.0004,59480.0,59479.0,1.1066494]
[1728583440256,0.0004,59480.0,59479.0,1.1116494]
[1728583440651,0.0004,59480.0,59479.0,1.0274904]
[1728583440859,0.0004,59480.0,59479.0,0.62157065]
[1728583441865,0.3608,59491.0,59483.0,0.084154]
[1728583442069,0.3608,59491.0,59479.0,1.11293065]
[1728583442255,0.3608,59491.0,59483.0,0.25392005]
[1728583442565,0.084118,59509.0,59479.0,0.8582]
[1728583442566,0.3608,59504.0,59480.0,0.61207726]
[1728583442751,0.3608,59504.0,59494.0,0.49]
[1728583442953,0.3608,59504.0,59489.0,0.49]
[1728583443267,0.444925,59504.0,59490.0,0.25127726]
[1728583443566,0.3608,59492.0,59489.0,0.2518326]
[1728583443864,0.3608,59492.0,59483.0,0.0014]
[1728583443865,0.3608,59492.0,59483.0,0.0004]
[1728583444063,0.3608,59484.0,59483.0,0.0004]
[1728583444263,1.46516,59484.0,59483.0,0.0004]
[1728583444564,1.549312,59484.0,59483.0,0.0004]
[1728583444758,0.084077,59481.0,59480.0,0.002]
[1728583445152,1.188837,59481.0,59480.0,0.002]
[1728583445353,0.0004,59481.0,59465.0,0.4925225]
[1728583445553,0.3608,59475.0,59474.0,0.084167]
[1728583445866,0.3608,59475.0,59469.0,0.2510308]
[1728583446058,0.0004,59470.0,59469.0,0.084174]
[1728583446567,0.0004,59470.0,59469.0,0.2510308]
[1728583446955,0.0004,59470.0,59469.0,0.084174]
[1728583447157,0.0004,59470.0,59465.0,0.0025225]
[1728583447464,0.0004,59466.0,59465.0,0.02391624]
[1728583447664,0.0004,59466.0,59465.0,0.0867015]
[1728583447857,0.0004,59466.0,59465.0,0.33944409]
[1728583448360,0.0004,59466.0,59465.0,0.25536384]
[1728583448567,0.0004,59466.0,59465.0,0.25274259]
[1728583448771,0.0004,59466.0,59465.0,0.33692159]
[1728583449357,0.0014,59466.0,59465.0,0.25274259]
[1728583449767,0.3642,59466.0,59462.0,0.25186428]
[1728583449956,0.3642,59466.0,59460.0,0.00107458]
[1728583449957,0.0004,59463.0,59460.0,0.00019458]
[1728583450157,0.8508,59461.0,59460.0,0.00019458]
[1728583450565,1.95532,59461.0,59460.0,0.00019458]
[1728583450962,2.039505,59461.0,59453.0,0.00252266]
[1728583451159,0.3608,59454.0,59453.0,0.00252266]
[1728583451467,0.444995,59454.0,59439.0,0.00856488]
[1728583451667,0.3608,59449.0,59444.0,0.084209]
[1728583452165,0.00017569,59448.0,59444.0,0.084209]
[1728583452471,0.00017569,59448.0,59447.0,0.084205]
[1728583452972,0.3608,59454.0,59453.0,0.084196]
[1728583453373,0.3608,59454.0,59453.0,0.33741067]
[1728583453571,0.3480263,59454.0,59453.0,0.82741067]
[1728583453774,0.0004,59470.0,59459.0,0.084188]
[1728583453965,0.0004,59470.0,59459.0,0.3608]
[1728583454162,0.0004,59470.0,59469.0,0.084174]
[1728583454468,0.1227583,59500.0,59469.0,1.02688144]
[1728583454469,0.444939,59494.0,59469.0,1.02688144]
[1728583454767,0.444939,59494.0,59478.0,0.08416]
[1728583455172,0.3608,59494.0,59479.0,0.25133833]
[1728583455474,0.08414,59493.0,59479.0,0.25133833]
[1728583455777,0.08414,59493.0,59479.0,0.084159]
[1728583456080,0.08414,59493.0,59476.0,0.3608]
[1728583456081,0.0054,59481.0,59480.0,0.25217711]
[1728583456269,0.0064,59481.0,59480.0,0.33633511]
[1728583456468,0.0064,59481.0,59480.0,0.084158]
[1728583456674,0.0014,59481.0,59480.0,0.33760869]
[1728583456967,0.0014,59481.0,59475.0,0.86021115]
[1728583456968,0.0004,59481.0,59479.0,0.005]
[1728583457277,0.01344,59480.0,59479.0,0.005]
[1728583457462,0.01344,59480.0,59478.0,0.28071975]
[1728583457669,0.01344,59480.0,59479.0,0.25272181]
[1728583458066,0.01344,59480.0,59478.0,0.28071975]
[1728583458373,0.01344,59480.0,59476.0,0.02155296]
[1728583458563,0.01344,59480.0,59472.0,0.3608]
[1728583458876,0.01344,59480.0,59473.0,0.33759983]
[1728583459077,0.3608,59477.0,59473.0,0.25343283]
[1728583459270,0.084164,59476.0,59467.0,0.00088]
[1728583459468,0.934972,59470.0,59465.0,0.0004]
[1728583459670,1.4512,59470.0,59465.0,0.0004]
[1728583459973,1.4512,59470.0,59448.0,0.3608]
[1728583459974,0.3612,59466.0,59448.0,0.3608]
[1728583460178,0.3608,59459.0,59448.0,0.3608]
[1728583460370,0.3608,59451.0,59450.0,0.25084489]
[1728583460568,0.3608,59451.0,59449.0,0.25084489]
[1728583460773,0.3608,59451.0,59448.0,0.02132053]
[1728583461074,0.49168,59458.0,59449.0,0.25376304]
[1728583461276,0.49,59458.0,59449.0,0.25376304]
[1728583461583,0.3608,59459.0,59452.0,0.084196]
[1728583461773,0.3608,59459.0,59449.0,0.445002]
[1728583461978,0.3608,59459.0,59454.0,0.084195]
[1728583462181,0.3608,59464.0,59455.0,0.3608]
[1728583462378,0.3608,59464.0,59456.0,0.084192]
[1728583462572,0.3608,59464.0,59455.0,0.61327513]
[1728583462573,0.3608,59464.0,59455.0,0.61415513]
[1728583462781,0.0014,59466.0,59462.0,0.444983]
[1728583462782,0.0004,59466.0,59462.0,0.444983]
[1728583463074,0.3608,59464.0,59463.0,0.25088403]
[1728583463278,0.001,59464.0,59463.0,0.25088403]
[1728583463475,0.001,59464.0,59460.0,0.25088403]
[1728583463671,0.001,59464.0,59459.0,0.46704871]
[1728583463870,0.001,59464.0,59461.0,0.2506819]
[1728583464275,0.001,59464.0,59459.0,0.46704871]
[1728583464470,0.001,59464.0,59462.0,0.25303019]
[1728583464677,0.001,59464.0,59459.0,0.87286271]
[1728583464678,0.001,59464.0,59461.0,0.25303019]
[1728583464872,0.0014,59466.0,59459.0,0.38286271]
[1728583465073,0.001,59464.0,59461.0,0.005]
[1728583465275,0.49,59462.0,59461.0,0.005]
[1728583465469,0.49,59462.0,59452.0,0.3608]
[1728583465679,0.49,59453.0,59430.0,0.00088]
[1728583465883,0.50456,59461.0,59438.0,0.00242771]
[1728583465884,0.935016,59439.0,59438.0,0.00242771]
[1728583466068,0.935016,59439.0,59421.0,0.3608]
[1728583466376,0.084226,59433.0,59422.0,0.25346128]
[1728583466692,0.084226,59433.0,59422.0,0.16938103]
[1728583467073,0.3608,59434.0,59422.0,0.16938103]
[1728583467572,0.3608,59434.0,59426.0,0.084233]
[1728583467880,0.3608,59434.0,59427.0,0.25248985]
[1728583468096,0.3608,59434.0,59427.0,0.33672185]
[1728583468381,0.006,59434.0,59428.0,0.3608]
[1728583468685,0.006,59434.0,59428.0,0.61202024]
[1728583468880,0.006,59434.0,59430.0,0.084228]
[1728583469377,0.001,59434.0,59431.0,0.25122024]
[1728583469573,0.3618,59434.0,59427.0,0.001]
[1728583469774,0.3618,59434.0,59429.0,0.25093991]
[1728583470089,0.3618,59434.0,59428.0,0.25593991]
[1728583470379,0.3618,59434.0,59429.0,0.25093991]
[1728583470788,0.3618,59434.0,59430.0,0.002]
[1728583471390,0.3618,59434.0,59430.0,0.007]
[1728583471571,0.3608,59434.0,59430.0,0.005]
[1728583471773,0.3608,59434.0,59431.0,0.25383382]
[1728583472084,0.3608,59434.0,59433.0,0.084225]
[1728583472381,0.3608,59434.0,59433.0,0.33805882]
[1728583472577,0.3608,59439.0,59433.0,0.33805882]
[1728583472777,0.3608,59439.0,59433.0,0.25383382]
[1728583473175,0.3608,59439.0,59430.0,0.001]
[1728583473380,0.3608,59434.0,59430.0,0.002]
[1728583474280,0.00196,59439.0,59433.0,0.001]
[1728583474281,0.3588,59439.0,59433.0,0.001]
[1728583474484,0.3588,59439.0,59433.0,0.00088]
[1728583474788,0.3608,59434.0,59433.0,0.00088]
[1728583474978,0.3608,59434.0,59431.0,0.25351872]
[1728583475489,0.3628,59439.0,59431.0,0.25351872]
[1728583475678,0.3628,59439.0,59431.0,0.16943847]
[1728583476089,0.3608,59432.0,59431.0,0.17143847]
[1728583476289,0.9608,59432.0,59431.0,0.002]
[1728583476483,1.4656,59432.0,59431.0,0.002]
[1728583476681,1.4656,59432.0,59368.0,0.11713028]
[1728583476682,1.4656,59432.0,59402.0,0.49]
[1728583476885,0.3608,59418.0,59412.0,0.00088]
[1728583477082,0.3608,59418.0,59403.0,0.275767]
[1728583477282,0.3608,59418.0,59413.0,0.084252]
[1728583477785,0.3608,59418.0,59409.0,0.3608]
[1728583477786,0.3608,59418.0,59414.0,0.08677557]
[1728583477985,0.3608,59418.0,59414.0,0.00252457]
[1728583478186,0.3608,59418.0,59414.0,0.02459864]
[1728583478789,0.00013097,59417.0,59413.0,0.084252]
[1728583478980,0.01359097,59417.0,59413.0,0.084252]
[1728583479178,0.01359097,59417.0,59413.0,0.2517261]
[1728583479380,0.37439097,59417.0,59407.0,0.49952382]
[1728583479679,0.37439097,59417.0,59415.0,0.007]
[1728583479884,0.01359097,59417.0,59416.0,0.084249]
[1728583480089,0.01359097,59417.0,59416.0,0.33663751]
[1728583480389,0.37439097,59417.0,59415.0,0.007]
[1728583480593,0.08426,59408.0,59407.0,0.02205668]
[1728583480798,0.08426,59408.0,59396.0,0.00822975]
[1728583480799,0.49,59406.0,59396.0,0.084277]
[1728583480983,0.49,59406.0,59395.0,0.02172059]
[1728583480984,0.3608,59400.0,59395.0,0.02172059]
[1728583481185,0.3608,59400.0,59397.0,0.25375022]
[1728583481388,0.86588,59400.0,59396.0,0.25375022]
[1728583481688,0.49,59397.0,59395.0,4e-05]
[1728583481887,0.0001918,59399.0,59385.0,0.36958721]
[1728583482191,0.0001918,59399.0,59388.0,0.25237266]
[1728583482192,0.3608,59390.0,59388.0,0.25237266]
[1728583482487,0.3608,59390.0,59377.0,0.59631423]
[1728583482791,0.00014655,59389.0,59384.0,0.00096]
[1728583483091,0.00014655,59389.0,59385.0,0.014]
[1728583483292,0.49014655,59389.0,59385.0,0.014]
[1728583483494,0.3608,59387.0,59385.0,0.014]
[1728583483791,0.5053111,59386.0,59385.0,0.014]
[1728583483978,0.0001511,59386.0,59385.0,0.014]
[1728583484379,1.1053111,59386.0,59375.0,0.084306]
[1728583484592,0.8508,59387.0,59368.0,0.3608]
[1728583484593,0.49,59377.0,59368.0,0.3608]
[1728583484797,0.3608,59369.0,59354.0,0.27924644]
[1728583485092,0.3608,59364.0,59361.0,0.25373179]
[1728583485279,0.00016284,59363.0,59361.0,0.25373179]
[1728583485483,1.10552284,59363.0,59352.0,0.00017157]
[1728583485689,0.3608,59364.0,59352.0,0.00017157]
[1728583485690,0.3608,59356.0,59352.0,0.00017157]
[1728583485890,0.00020831,59355.0,59352.0,0.00017157]
[1728583486095,0.00020831,59355.0,59354.0,0.003]
[1728583486286,0.3608,59355.0,59354.0,0.003]
[1728583486591,0.36095386,59355.0,59354.0,0.003]
[1728583486893,0.00015386,59355.0,59354.0,0.003]
[1728583487096,0.00015386,59355.0,59354.0,0.087337]
[1728583487399,0.00015386,59355.0,59354.0,0.34169268]
[1728583487598,0.00015386,59355.0,59354.0,0.33869268]
[1728583487781,0.00015386,59355.0,59354.0,0.084337]
[1728583487986,0.00015386,59355.0,59353.0,0.3608]
[1728583488188,0.00015386,59355.0,59354.0,0.084337]
[1728583488189,0.00215386,59355.0,59354.0,0.084337]
[1728583488885,0.00215386,59355.0,59352.0,0.00017157]
[1728583488886,0.49215386,59355.0,59352.0,0.00017157]
[1728583489389,0.00215386,59355.0,59352.0,0.00017157]
[1728583489890,0.00215386,59355.0,59352.0,5.157e-05]
[1728583490096,0.49215386,59355.0,59353.0,0.2528849]
[1728583490392,0.00215386,59355.0,59353.0,0.084337]
[1728583490593,0.00015386,59355.0,59353.0,0.084337]
[1728583490790,0.00115386,59355.0,59353.0,0.084337]
[1728583490993,0.00115386,59355.0,59343.0,0.3608]
[1728583491193,0.00015386,59355.0,59344.0,0.084351]
[1728583491393,0.3608,59353.0,59348.0,0.084345]
[1728583491589,0.3608,59353.0,59345.0,0.08435]
[1728583491790,0.3608,59353.0,59342.0,0.3608]
[1728583491993,0.3608,59353.0,59347.0,0.084347]
[1728583492294,0.3608,59353.0,59345.0,0.25135389]
[1728583492492,0.3608,59353.0,59345.0,0.084348]
[1728583492700,0.3608,59353.0,59347.0,0.084345]
[1728583492897,0.3618,59353.0,59347.0,0.084345]
[1728583493086,0.3618,59353.0,59348.0,0.2540563]
[1728583493492,0.3618,59353.0,59348.0,0.3384013]
[1728583493989,0.3618,59353.0,59348.0,0.25432105]
[1728583494196,0.3608,59353.0,59352.0,0.770534]
[1728583494396,0.3628,59353.0,59352.0,0.770534]
[1728583494902,0.3618,59353.0,59352.0,0.770534]
[1728583495195,0.3628,59353.0,59352.0,0.770534]
[1728583495398,0.002,59353.0,59352.0,1.02193198]
[1728583495593,0.38284187,59365.0,59354.0,0.084337]
[1728583495797,0.38284187,59365.0,59364.0,0.084323]
[1728583495798,0.02204187,59365.0,59364.0,0.084323]
[1728583495993,0.00252782,59368.0,59359.0,0.445128]
[1728583496188,0.3608,59360.0,59353.0,0.084338]
[1728583496402,0.49,59356.0,59353.0,0.25314777]
[1728583496596,0.3608,59354.0,59352.0,0.77306096]
[1728583496796,0.00021524,59353.0,59352.0,0.77306096]
[1728583496995,0.00021524,59353.0,59352.0,0.68898071]
[1728583497595,1.10565524,59353.0,59352.0,0.3834999]
[1728583497795,1.10565524,59353.0,59330.0,0.3608]
[1728583497796,0.084347,59347.0,59330.0,0.3608]
[1728583498001,0.49,59338.0,59330.0,0.3608]
[1728583498293,0.00016377,59337.0,59330.0,0.3608]
[1728583498493,0.50576377,59337.0,59324.0,0.3608]
[1728583498689,0.00012389,59336.0,59324.0,0.25816]
[1728583498890,0.49,59325.0,59306.0,0.00088]
[1728583499104,0.49,59325.0,59302.0,0.3608]
[1728583499105,0.3608,59309.0,59302.0,0.3608]
[1728583499289,0.3608,59316.0,59295.0,0.3608]
[1728583499290,0.3608,59308.0,59307.0,0.25447879]
[1728583499494,0.3608,59308.0,59295.0,0.02198309]
[1728583499710,0.5,59301.0,59284.0,0.06841628]
[1728583499897,0.56088,59307.0,59284.0,0.06841628]
[1728583499898,0.5,59285.0,59284.0,0.06841628]
[1728583500096,0.5,59285.0,59274.0,0.07233229]
[1728583500395,0.00018956,59284.0,59278.0,0.25189536]
[1728583500605,0.50018956,59284.0,59278.0,0.25189536]
[1728583500908,0.3608,59281.0,59271.0,0.3608]
[1728583501094,0.00253166,59297.0,59271.0,0.3608]
[1728583501095,0.3608,59292.0,59280.0,0.49]
[1728583501295,0.00253166,59297.0,59291.0,0.49]
[1728583501499,0.00253166,59297.0,59290.0,0.3608]
[1728583501694,0.00253166,59297.0,59284.0,0.5]
[1728583501895,0.00253166,59297.0,59285.0,0.084434]
[1728583502099,0.00016559,59296.0,59288.0,0.49]
[1728583502297,0.00016559,59296.0,59291.0,0.3608]
[1728583502496,0.3608,59306.0,59293.0,0.49]
[1728583502699,0.3608,59315.0,59311.0,0.084397]
[1728583502903,0.00252972,59324.0,59312.0,0.084396]
[1728583502904,0.3608,59321.0,59312.0,0.084396]
[1728583503095,0.3608,59321.0,59312.0,0.2537646]
[1728583503298,0.3608,59321.0,59313.0,0.17995792]
[1728583503504,0.0002049,59320.0,59313.0,0.17995792]
[1728583503809,0.3608,59314.0,59303.0,0.084408]
[1728583504104,0.0001497,59313.0,59304.0,0.6134721]
[1728583504309,0.0001497,59313.0,59307.0,0.084403]
[1728583504498,0.0001497,59313.0,59310.0,0.084399]
[1728583504811,0.0001497,59313.0,59312.0,0.5058]
[1728583505108,0.3728,59321.0,59311.0,1.70202274]
[1728583505109,0.012,59321.0,59319.0,0.084386]
[1728583505300,0.00252972,59324.0,59319.0,0.49]
[1728583505501,0.3608,59327.0,59320.0,0.25126274]
[1728583505803,0.3608,59326.0,59314.0,0.3608]
[1728583506004,0.3608,59326.0,59320.0,0.00223875]
[1728583506207,0.3608,59326.0,59316.0,0.49]
[1728583506208,5.827e-05,59325.0,59323.0,0.084381]
[1728583506504,0.3608,59333.0,59324.0,0.33747644]
[1728583506700,0.3608,59333.0,59329.0,0.574372]
[1728583506902,0.00252945,59336.0,59329.0,0.574372]
[1728583506903,0.01348,59332.0,59331.0,0.084369]
[1728583507202,0.49,59357.0,59331.0,0.084369]
[1728583507203,0.3608,59354.0,59340.0,0.084356]
[1728583507405,0.3608,59349.0,59340.0,0.084356]
[1728583508010,0.3608,59349.0,59342.0,0.49]
[1728583508311,0.3608,59349.0,59348.0,0.084345]
[1728583508607,0.3608,59361.0,59348.0,0.3608]
[1728583508803,0.3608,59361.0,59342.0,0.88003945]
[1728583508804,0.3608,59361.0,59350.0,0.49]
[1728583509009,0.3608,59354.0,59348.0,0.25197343]
[1728583509213,0.3608,59354.0,59351.0,0.16789318]
[1728583509403,0.3608,59354.0,59348.0,0.25197343]
[1728583509600,0.0004,59349.0,59348.0,0.25197343]
[1728583509796,0.0004,59349.0,59342.0,0.3608]
[1728583509797,0.3612,59349.0,59342.0,0.3608]
[1728583510103,0.084355,59341.0,59340.0,0.0028344]
[1728583510306,0.084355,59341.0,59326.0,0.00011914]
[1728583510307,1.46468,59341.0,59326.0,0.00011914]
[1728583510515,0.722,59327.0,59306.0,0.195]
[1728583510813,0.722,59327.0,59309.0,0.25251053]
[1728583510814,0.3608,59317.0,59309.0,0.25251053]
[1728583510997,0.36079902,59312.0,59309.0,0.25251053]
[1728583511611,0.36079902,59312.0,59299.0,0.85168]
[1728583511612,0.084407,59305.0,59299.0,0.00088]
[1728583511816,1.306014,59300.0,59288.0,0.00088]
[1728583512016,0.3608,59289.0,59283.0,0.00015509]
[1728583512314,0.49,59299.0,59283.0,0.00015509]
[1728583512315,0.00196,59299.0,59294.0,0.084421]
[1728583512498,0.3608,59300.0,59294.0,0.084421]
[1728583512705,0.3608,59300.0,59295.0,0.25395315]
[1728583512901,0.3608,59300.0,59298.0,0.084416]
[1728583513100,0.3608,59306.0,59299.0,0.3608]
[1728583513302,0.3608,59306.0,59299.0,0.61495596]
[1728583513697,0.3608,59306.0,59296.0,0.084418]
[1728583513698,0.3608,59306.0,59296.0,0.3608]
[1728583513903,0.002,59300.0,59296.0,0.3608]
[1728583514109,0.002,59300.0,59297.0,0.25182109]
[1728583514303,0.3608,59306.0,59299.0,0.084415]
[1728583514597,0.002,59306.0,59305.0,0.084406]
[1728583514999,0.001,59306.0,59305.0,0.33731189]
[1728583515208,0.001,59306.0,59305.0,0.25290589]
[1728583515599,0.001,59306.0,59305.0,0.50584]
[1728583515799,0.001,59306.0,59305.0,1.10584]
[1728583516005,0.001,59306.0,59305.0,0.75848866]
[1728583516209,0.8508,59316.0,59305.0,0.25264866]
[1728583516417,0.8508,59316.0,59306.0,0.3608]
[1728583516809,0.8508,59316.0,59307.0,0.25372082]
[1728583517410,0.8528,59316.0,59307.0,0.25372082]
[1728583517911,0.8638,59316.0,59307.0,0.25372082]
[1728583518314,0.8638,59316.0,59307.0,0.16964057]
[1728583518512,0.3658,59316.0,59307.0,0.16964057]
[1728583518716,0.3608,59310.0,59307.0,0.16964057]
[1728583518913,0.084404,59307.0,59289.0,0.084429]
[1728583519113,0.8608,59308.0,59288.0,0.5526]
[1728583519114,0.5,59299.0,59288.0,0.3608]
[1728583519315,0.3608,59301.0,59289.0,0.25393895]
[1728583519520,0.49,59305.0,59293.0,0.3608]
[1728583519818,0.3608,59308.0,59298.0,0.445216]
[1728583520023,0.3608,59308.0,59299.0,0.084415]
[1728583520217,0.008,59307.0,59299.0,0.33793682]
[1728583520419,0.49,59302.0,59299.0,0.25352182]
[1728583520722,0.49,59302.0,59295.0,0.08442]
[1728583521020,0.49,59302.0,59298.0,0.001]
[1728583521421,0.495,59307.0,59299.0,0.25261016]
[1728583522121,0.49,59302.0,59299.0,0.25261016]
[1728583522621,0.3608,59303.0,59284.0,0.5551]
[1728583522622,0.084419,59296.0,59284.0,0.1943]
[1728583522810,0.084419,59296.0,59283.0,0.00015509]
[1728583522811,0.3608,59293.0,59283.0,0.00015509]
[1728583523012,0.3608,59293.0,59285.0,0.25217378]
[1728583523210,0.3608,59293.0,59284.0,0.33660978]
[1728583523413,0.3608,59293.0,59285.0,0.084435]
[1728583523721,0.3608,59293.0,59285.0,0.33660878]
[1728583523916,0.3618,59293.0,59285.0,0.084435]
[1728583524117,0.3648,59293.0,59286.0,0.25208371]
[1728583524327,0.004,59293.0,59286.0,0.16800346]
[1728583524622,0.004,59293.0,59283.0,0.36595509]
[1728583524623,0.004,59293.0,59290.0,0.084428]
[1728583524825,0.3608,59303.0,59289.0,0.3608]
[1728583525015,0.5,59294.0,59291.0,0.2540141]
[1728583525216,0.5,59294.0,59290.0,0.2540141]
[1728583525414,0.5,59291.0,59285.0,0.3608]
[1728583525615,0.8608,59291.0,59283.0,0.00015509]
[1728583525819,0.8608,59291.0,59283.0,0.00111509]
[1728583525820,0.3608,59284.0,59283.0,0.00111509]
[1728583526120,0.8608,59291.0,59283.0,0.00111509]
[1728583526625,0.8608,59291.0,59275.0,0.00088]
[1728583526627,0.8608,59284.0,59275.0,0.00088]
[1728583526816,0.3608,59284.0,59273.0,0.3608]
[1728583527011,0.3608,59284.0,59283.0,0.002]
[1728583527412,0.3608,59284.0,59274.0,0.18377087]
[1728583527615,0.5,59275.0,59265.0,0.00354612]
[1728583527816,0.3608,59266.0,59265.0,0.00354612]
[1728583528523,0.3608,59276.0,59265.0,0.00354612]
[1728583528524,0.3608,59271.0,59265.0,0.00354612]
[1728583528829,0.3608,59266.0,59265.0,0.00354612]
[1728583529926,0.3608,59266.0,59265.0,0.00525154]
[1728583530513,0.3658,59266.0,59258.0,0.3608]
[1728583530719,0.00224001,59276.0,59265.0,0.33778347]
[1728583530917,0.3608,59280.0,59271.0,0.084455]
[1728583531122,0.3608,59280.0,59268.0,0.3608]
[1728583531322,0.3608,59280.0,59273.0,0.3608]
[1728583531517,0.3608,59280.0,59277.0,0.084446]
[1728583531717,0.00253243,59283.0,59280.0,0.084442]
[1728583532123,0.00253243,59283.0,59281.0,0.25216601]
[1728583532529,0.00253243,59283.0,59260.0,0.02532]
[1728583532530,0.5,59282.0,59269.0,0.3608]
[1728583532826,0.00253243,59283.0,59274.0,0.61292873]
[1728583533030,0.00253243,59283.0,59274.0,0.25212873]
[1728583533335,0.00353243,59283.0,59272.0,0.3608]
[1728583533518,0.3608,59279.0,59272.0,0.36117275]
[1728583533718,0.3608,59279.0,59273.0,0.25212873]
[1728583534128,0.5,59276.0,59274.0,0.001]
[1728583534530,0.5,59276.0,59274.0,0.00084]
[1728583534827,0.5,59276.0,59273.0,0.006]
[1728583535123,0.5,59276.0,59265.0,0.00253092]
[1728583535124,0.3608,59274.0,59265.0,0.00253092]
[1728583535328,0.3608,59267.0,59265.0,0.00253092]
[1728583536521,0.3608,59267.0,59257.0,0.3608]
[1728583536722,0.3608,59259.0,59248.0,0.445287]
[1728583536925,0.00232,59262.0,59258.0,0.61497872]
[1728583537229,0.3648,59267.0,59258.0,0.61497872]
[1728583537230,0.3648,59267.0,59259.0,0.19202569]
[1728583537529,0.3648,59267.0,59259.0,0.25417872]
[1728583537716,0.3648,59267.0,59266.0,0.084462]
[1728583537922,0.004,59267.0,59266.0,0.084462]
[1728583538117,0.01749,59267.0,59266.0,0.33808622]
[1728583538323,0.27829,59273.0,59267.0,0.08446]
[1728583538521,0.27829,59273.0,59269.0,0.084457]
[1728583538727,0.27829,59273.0,59268.0,0.25362422]
[1728583538944,0.5,59269.0,59255.0,0.084476]
[1728583539230,0.5,59269.0,59252.0,0.06733327]
[1728583539231,0.001,59267.0,59259.0,0.005]
[1728583539529,0.001,59267.0,59254.0,0.25228686]
[1728583539733,0.001,59267.0,59257.0,0.084475]
[1728583540030,0.001,59267.0,59257.0,0.25231377]
[1728583540335,0.001,59267.0,59257.0,0.084475]
[1728583540336,0.3608,59262.0,59257.0,0.084475]
[1728583540718,0.001,59267.0,59255.0,0.004]
[1728583540719,0.001,59267.0,59260.0,0.44527]
[1728583540921,0.3608,59268.0,59260.0,0.3608]
[1728583541127,0.3608,59268.0,59261.0,0.25376874]
[1728583541431,0.3608,59268.0,59263.0,0.084465]
[1728583541624,0.001,59273.0,59267.0,0.084461]
[1728583541928,0.3608,59272.0,59268.0,0.084459]
[1728583542435,0.3608,59272.0,59271.0,0.084455]
[1728583542725,0.3608,59272.0,59262.0,0.21868561]
[1728583542931,0.001,59268.0,59262.0,0.19167177]
[1728583543125,0.001,59268.0,59263.0,0.25414166]
[1728583543529,0.3608,59272.0,59268.0,0.008]
[1728583543530,0.3618,59272.0,59268.0,0.008]
[1728583545235,0.3618,59272.0,59262.0,0.005]
[1728583545424,0.3618,59272.0,59262.0,0.089467]
[1728583545625,0.3618,59272.0,59261.0,0.25429429]
[1728583545826,0.3618,59272.0,59260.0,0.3608]
[1728583545827,0.3618,59272.0,59260.0,0.44527]
[1728583546140,0.3628,59272.0,59268.0,0.007]
[1728583546321,0.084462,59267.0,59252.0,0.06333327]
[1728583546518,0.8608,59269.0,59253.0,0.25376004]
[1728583546519,0.3608,59261.0,59253.0,0.25376004]
[1728583546822,0.3608,59261.0,59252.0,0.06333327]
[1728583546823,0.3608,59254.0,59252.0,0.06333327]
[1728583547427,0.3608,59254.0,59233.0,0.3608]
[1728583547428,0.50632,59253.0,59233.0,0.3608]
[1728583547630,0.5,59242.0,59233.0,0.3608]
[1728583547822,0.3608,59246.0,59233.0,0.3608]
[1728583548018,0.3608,59246.0,59237.0,0.084494]
[1728583548228,0.5,59241.0,59233.0,0.3608]
[1728583548432,0.3608,59239.0,59233.0,0.3608]
[1728583548625,0.5,59234.0,59223.0,0.27671975]
[1728583548831,0.3608,59237.0,59226.0,0.08451]
[1728583549027,0.3608,59237.0,59224.0,0.25360214]
[1728583549229,0.3608,59237.0,59230.0,0.084504]
[1728583549424,0.3608,59237.0,59230.0,0.084464]
[1728583549735,0.8608,59231.0,59206.0,0.36333333]
[1728583549922,0.3608,59225.0,59221.0,0.084517]
[1728583550128,0.5,59224.0,59216.0,0.2543141]
[1728583550424,0.5,59224.0,59218.0,0.084522]
[1728583550836,0.5,59224.0,59214.0,0.2543141]
[1728583551133,0.5,59225.0,59211.0,0.3608]
[1728583551319,0.5,59219.0,59215.0,0.25491051]
[1728583551524,0.3608,59226.0,59213.0,0.25491051]
[1728583551525,0.5,59216.0,59213.0,0.25491051]
[1728583551721,0.5,59216.0,59206.0,0.3608]
[1728583552333,0.50668,59215.0,59206.0,0.3608]
[1728583552639,0.584534,59210.0,59200.0,0.1471]
[1728583552828,0.5,59210.0,59200.0,0.1471]
[1728583553021,0.3608,59221.0,59207.0,0.8608]
[1728583553222,0.5,59230.0,59220.0,0.084518]
[1728583553422,0.3608,59233.0,59220.0,0.3608]
[1728583553927,0.00253365,59237.0,59220.0,0.3608]
[1728583553928,0.00253365,59237.0,59224.0,0.084513]
[1728583554237,0.00253365,59237.0,59224.0,0.25257043]
[1728583554427,0.00253365,59237.0,59231.0,0.3608]
[1728583554625,0.00224001,59242.0,59231.0,0.3608]
[1728583554830,0.0135,59245.0,59239.0,0.3608]
[1728583555030,0.0135,59245.0,59244.0,0.3608]
[1728583555333,0.0135,59245.0,59244.0,0.69836949]
[1728583556432,0.8608,59262.0,59248.0,0.084478]
[1728583556625,0.8608,59268.0,59252.0,0.084473]
[1728583556822,0.86304001,59268.0,59256.0,0.3608]
[1728583557724,0.86304001,59268.0,59252.0,0.00039175]
[1728583557925,0.36304001,59268.0,59252.0,0.084472]
[1728583558135,0.3608,59268.0,59256.0,0.445268]
[1728583558329,0.00653253,59265.0,59256.0,0.3608]
[1728583558534,0.00653253,59265.0,59260.0,0.5]
[1728583558722,0.00653253,59265.0,59264.0,0.084456]
[1728583558928,0.00653253,59265.0,59264.0,0.445256]
[1728583559129,0.00653253,59265.0,59264.0,0.61437477]
[1728583559438,0.00953253,59265.0,59264.0,0.61437477]
[1728583559829,0.007,59265.0,59264.0,0.61437477]
[1728583560024,0.011,59265.0,59264.0,0.61437477]
[1728583560535,0.011,59265.0,59257.0,0.2141]
[1728583560833,0.3608,59263.0,59258.0,0.25251055]